fUST/lending_fUST_20240530
["ID","MTS","AMOUNT","RATE_DAILY","PERIOD"]
[328230624,1717079445570,-632.38795393,0.00019178,2]
[328230626,1717079445580,-206.40169476,0.00019178,2]
[328230628,1717079445589,-500.0,0.00019178,2]
[328230630,1717079445598,-426.66470612,0.00019178,2]
[328230633,1717079445607,-169.811481,0.00019178,2]
[328230635,1717079445617,-168.962461,0.00019178,2]
[328230637,1717079445626,-2808.99426799,0.0002,2]
[328230638,1717079445635,-3421.39712883,0.0002,2]
[328230641,1717079445644,-3092.51655745,0.0002,2]
[328230643,1717079445653,-2774.18401632,0.0002,2]
[328230645,1717079445663,-154.92253873,0.0002,2]
[328230647,1717079445672,-177.8,0.00020297,3]
[328230648,1717079445681,-3000.0,0.00020547,2]
[328230650,1717079445691,-795.43847835,0.00020547,2]
[328230652,1717079445700,-586.75555114,0.0002066,7]
[328230655,1717079445710,-227.93207928,0.00021,2]
[328230659,1717079445719,-393.10916144,0.00021,2]
[328230660,1717079445729,-177.8,0.00021528,3]
[328230662,1717079445738,-356.189306,0.00021588,2]
[328230665,1717079445748,-9930.0,0.000219,5]
[328230666,1717079445757,-497.0,0.0002195,2]
[328230668,1717079445769,-177.8,0.00022758,3]
[328230670,1717079445778,-189.8388925,0.00023,2]
[328230673,1717079445788,-587.7541977,0.00023753,2]
[328230675,1717079445798,-291.9275846,0.00023753,2]
[328230677,1717079445807,-150.0,0.00023778,2]
[328230679,1717079445816,-150.0,0.00023778,2]
[328230680,1717079445825,-150.0,0.00023778,2]
[328230682,1717079445834,-620.01039785,0.00023814,2]
[328230685,1717079445844,-1244.7922903,0.000239,2]
[328230687,1717079445855,-177.8,0.00023989,5]
[328230688,1717079445865,-151.0,0.00023989,5]
[328230691,1717079445875,-314.3309476,0.00024164,2]
[328230693,1717079445884,-573.413161,0.00024384,2]
[328230694,1717079445894,-153.0,0.00024384,2]
[328230696,1717079445903,-153.0,0.00024384,2]
[328230699,1717079445913,-497.0,0.0002495,2]
[328230701,1717079445922,-33586.71189294,0.00025,2]
[328230704,1717079445933,-160.0,0.00025,2]
[328230708,1717079445942,-22879.08364244,0.00025,2]
[328230711,1717079445951,-154.92253873,0.00025,2]
[328230713,1717079445960,-282.0,0.00025,2]
[328230715,1717079445969,-539.25523831,0.00025,2]
[328230716,1717079445978,-151.0,0.00025,2]
[328230718,1717079445987,-151.0,0.00025,2]
[328230720,1717079445996,-151.0,0.00025,2]
[328230723,1717079446005,-151.0,0.00025,2]
[328230725,1717079446014,-151.0,0.00025,2]
[328230727,1717079446026,-151.0,0.00025,2]
[328230728,1717079446035,-151.0,0.00025,2]
[328230731,1717079446044,-178.95379105,0.00025,2]
[328230733,1717079446054,-620.00051989,0.00025005,2]
[328230735,1717079446063,-153.0,0.00025205,2]
[328230736,1717079446072,-153.0,0.00025205,2]
[328230738,1717079446081,-153.0,0.00025205,2]
[328230740,1717079446090,-177.8,0.00025219,5]
[328230742,1717079446100,-151.0,0.00025219,5]
[328230745,1717079446109,-1148.09601371,0.000256,2]
[328230746,1717079446119,-620.00002599,0.00026255,2]
[328230748,1717079446128,-177.8,0.0002645,5]
[328230750,1717079446138,-151.0,0.0002645,5]
[328230752,1717079446148,-3000.0,0.000265,2]
[328230755,1717079446157,-5191.786831,0.0002651,2]
[328230757,1717079446167,-158.5623509,0.00026767,2]
[328230759,1717079446177,-150.0,0.00026778,2]
[328230761,1717079446186,-160.48,0.000269,3]
[328230762,1717079446196,-165.30084358,0.00027397,2]
[328230764,1717079446206,-500.0,0.00027397,2]
[328230766,1717079446216,-500.0,0.00027397,2]
[328230768,1717079446226,-500.0,0.00027397,2]
[328230771,1717079446236,-500.0,0.00027397,2]
[328230773,1717079446245,-500.0,0.00027397,2]
[328230775,1717079446257,-500.0,0.00027397,2]
[328230777,1717079446268,-500.0,0.00027397,2]
[328230779,1717079446277,-490.27355552,0.00027397,2]
[328230781,1717079446287,-500.0,0.00027397,2]
[328230783,1717079446297,-500.0,0.00027397,2]
[328230785,1717079446306,-384.28448764,0.00027397,2]
[328230787,1717079446315,-432.44983989,0.00027397,2]
[328230789,1717079446325,-402.75099873,0.00027397,7]
[328230791,1717079446334,-807.87377587,0.000275,17]
[328230793,1717079446344,-19087.30839443,0.000275,4]
[328230795,1717079446353,-217.985758,0.000275,2]
[328230797,1717079446363,-151.0,0.000275,2]
[328230799,1717079446372,-151.0,0.000275,2]
[328230801,1717079446381,-151.0,0.000275,2]
[328230802,1717079446391,-151.0,0.000275,2]
[328230804,1717079446400,-412.3490653,0.00027589,2]
[328230806,1717079446410,-291.9275846,0.00027612,2]
[328230808,1717079446419,-153.0,0.00027612,2]
[328230810,1717079446428,-204.8553096,0.00027612,2]
[328230812,1717079446438,-153.0,0.00027671,2]
[328230814,1717079446447,-177.8,0.0002768,7]
[328230816,1717079446456,-151.0,0.0002768,7]
[328230818,1717079446465,-496.0,0.0002795,2]
[328230820,1717079446474,-188.75784192,0.00028,7]
[328230822,1717079446485,-221.92837495,0.00028,2]
[328230824,1717079446494,-154.84515485,0.00028,7]
[328230826,1717079446503,-22235.79413093,0.00028,14]
[328230828,1717079446512,-456.9241108,0.00028,2]
[328230830,1717079446522,-761.60640302,0.00028,2]
[328230832,1717079446531,-174.76894127,0.00028,2]
[328230834,1717079446540,-2279.0,0.00028,30]
[328230836,1717079446549,-6365.3539471,0.00028,30]
[328230838,1717079446560,-291.9275846,0.00028362,2]
[328230840,1717079446570,-153.0,0.00028493,2]
[328230842,1717079446580,-160.48,0.000289,3]
[328230844,1717079446589,-177.8,0.00028911,7]
[328230846,1717079446598,-151.0,0.00028911,7]
[328230848,1717079446607,-153.0,0.00029179,2]
[328230850,1717079446615,-32231.89398726,0.000295,5]
[328230852,1717079446625,-151.0,0.000295,2]
[328230854,1717079446635,-278.214787,0.000295,2]
[328230856,1717079446644,-151.0,0.000295,2]
[328230858,1717079446653,-151.0,0.000295,2]
[328230860,1717079446662,-291.9275846,0.00029964,2]
[328230862,1717079446672,-12576.64077133,0.0003,2]
[328230864,1717079446681,-829.0,0.0003,120]
[328230866,1717079446690,-154.84515485,0.0003,4]
[328230868,1717079446699,-558.72,0.0003,2]
[328230870,1717079446709,-503.99594418,0.00030136,4]
[328230872,1717079446718,-504.84022962,0.00030136,4]
[328230874,1717079446730,-512.96966316,0.00030136,4]
[328230876,1717079446740,-591.02920774,0.00030136,4]
[328230878,1717079446750,-507.47775631,0.00030136,4]
[328230880,1717079446760,-505.0141404,0.00030136,4]
[328230882,1717079446772,-500.0,0.00030136,4]
[328230884,1717079446781,-506.23772911,0.00030136,4]
[328230886,1717079446789,-507.22084898,0.00030136,4]
[328230888,1717079446798,-500.0,0.00030136,4]
[328230890,1717079446807,-510.98363265,0.00030136,4]
[328230892,1717079446816,-500.0,0.00030136,4]
[328230894,1717079446828,-512.83516323,0.00030136,4]
[328230896,1717079446837,-429.38614714,0.00030136,4]
[328230898,1717079446848,-303.32306654,0.00030136,4]
[328230900,1717079446861,-547.69135845,0.00030136,4]
[328230903,1717079446870,-506.74140739,0.00030136,4]
[328230906,1717079446879,-503.88582053,0.00030136,4]
[328230909,1717079446890,-507.52903829,0.00030136,4]
[328230912,1717079446900,-528.46244069,0.00030136,4]
[328230915,1717079446908,-209.1616733,0.00030136,4]
[328230918,1717079446919,-512.09301966,0.00030136,4]
[328230921,1717079446928,-542.99536753,0.00030136,4]
[328230923,1717079446937,-503.94008079,0.00030136,4]
[328230924,1717079446946,-500.0,0.00030136,4]
[328230925,1717079446955,-506.43080775,0.00030136,4]
[328230926,1717079446964,-500.0,0.00030136,4]
[328230927,1717079446973,-521.67923705,0.00030136,4]
[328230928,1717079446982,-505.15684017,0.00030136,4]
[328230929,1717079446992,-504.03848806,0.00030136,4]
[328230930,1717079447001,-615.10887659,0.00030136,4]
[328230931,1717079447010,-505.09493244,0.00030136,4]
[328230932,1717079447020,-547.47859496,0.00030136,4]
[328230933,1717079447030,-508.13801004,0.00030136,4]
[328230934,1717079447039,-500.0,0.00030136,4]
[328230935,1717079447048,-500.0,0.00030136,4]
[328230937,1717079447058,-198.38570442,0.00030136,4]
[328230939,1717079447067,-275.43873009,0.00030136,4]
[328230941,1717079447076,-500.0,0.00030136,2]
[328230943,1717079447084,-154.92253873,0.00030136,4]
[328230945,1717079447094,-503.39871327,0.00030136,4]
[328230947,1717079447103,-503.49987748,0.00030136,4]
[328230949,1717079447111,-502.11445492,0.00030136,4]
[328230951,1717079447121,-500.0,0.00030136,4]
[328230953,1717079447130,-505.13435407,0.00030136,4]
[328230955,1717079447139,-511.68758056,0.00030136,4]
[328230957,1717079447148,-1007.74488595,0.00030136,5]
[328230959,1717079447156,-502.31604501,0.00030136,4]
[328230961,1717079447166,-501.69448722,0.00030136,4]
[328230963,1717079447176,-504.51071844,0.00030136,4]
[328230965,1717079447184,-482.96170999,0.00030136,4]
[328230967,1717079447194,-500.0,0.00030136,4]
[328230969,1717079447203,-505.03347805,0.00030136,4]
[328230971,1717079447212,-504.53654078,0.00030136,4]
[328230973,1717079447222,-503.6384898,0.00030136,4]
[328230975,1717079447231,-500.0,0.00030136,4]
[328230977,1717079447240,-501.62654588,0.00030136,4]
[328230979,1717079447250,-511.76615534,0.00030136,4]
[328230981,1717079447259,-501.81496742,0.00030136,4]
[328230983,1717079447270,-504.57389669,0.00030136,4]
[328230985,1717079447278,-497.85359625,0.00030136,4]
[328230987,1717079447287,-503.2166373,0.00030136,4]
[328230989,1717079447296,-503.76582629,0.00030136,4]
[328230991,1717079447305,-500.0,0.00030136,4]
[328230993,1717079447314,-504.74745518,0.00030136,4]
[328230995,1717079447323,-500.0,0.00030136,4]
[328230997,1717079447333,-603.52520413,0.00030136,4]
[328230999,1717079447342,-289.63373815,0.00030136,4]
[328231001,1717079447351,-500.0,0.00030136,4]
[328231003,1717079447360,-500.0,0.00030136,4]
[328231005,1717079447370,-500.0,0.00030136,4]
[328231007,1717079447379,-500.0,0.00030136,4]
[328231009,1717079447388,-500.0,0.00030136,2]
[328231011,1717079447397,-500.0,0.00030136,4]
[328231013,1717079447407,-500.0,0.00030136,4]
[328231015,1717079447416,-500.0,0.00030136,4]
[328231017,1717079447426,-235.17147662,0.00030136,4]
[328231019,1717079447435,-487.27054117,0.00030136,4]
[328231021,1717079447444,-504.18741043,0.00030136,4]
[328231023,1717079447454,-499.70183635,0.00030136,4]
[328231025,1717079447463,-500.0,0.00030136,4]
[328231027,1717079447472,-540.7544581,0.00030136,4]
[328231029,1717079447481,-508.36976378,0.00030136,4]
[328231031,1717079447491,-500.0,0.00030136,4]
[328231033,1717079447500,-500.0,0.00030136,4]
[328231035,1717079447509,-223.84,0.00030136,4]
[328231037,1717079447518,-500.0,0.00030136,4]
[328231039,1717079447527,-505.95844989,0.00030136,4]
[328231041,1717079447536,-500.0,0.00030136,4]
[328231043,1717079447546,-151.0,0.00030136,2]
[328231045,1717079447555,-500.0,0.00030136,4]
[328231047,1717079447565,-500.0,0.00030136,4]
[328231049,1717079447574,-500.0,0.00030136,4]
[328231051,1717079447583,-500.0,0.00030136,4]
[328231053,1717079447593,-500.0,0.00030136,4]
[328231055,1717079447602,-500.0,0.00030136,4]
[328231057,1717079447612,-151.0,0.00030136,2]
[328231059,1717079447621,-151.0,0.00030136,2]
[328231061,1717079447630,-1014.89,0.00030136,4]
[328231063,1717079447639,-1286.1,0.00030136,4]
[328231065,1717079447649,-500.0,0.00030136,4]
[328231067,1717079447658,-500.0,0.00030136,4]
[328231069,1717079447668,-371.60686071,0.00030136,4]
[328231071,1717079447679,-500.0,0.00030136,4]
[328231073,1717079447687,-690.89,0.00030136,4]
[328231075,1717079447697,-500.0,0.00030136,4]
[328231077,1717079447706,-504.71423532,0.00030136,4]
[328231079,1717079447715,-2164.75,0.00030136,4]
[328231081,1717079447725,-503.51515004,0.00030136,4]
[328231083,1717079447734,-500.0,0.00030136,4]
[328231085,1717079447744,-500.0,0.00030136,4]
[328231087,1717079447754,-561.83,0.00030136,4]
[328231089,1717079447762,-500.0,0.00030136,4]
[328231091,1717079447772,-500.0,0.00030136,4]
[328231102,1717079447859,-500.0,0.00030136,4]
[328231105,1717079447877,-500.0,0.00030136,4]
[328231107,1717079447886,-404.16,0.00030136,4]
[328231109,1717079447896,-500.0,0.00030136,2]
[328231111,1717079447907,-500.0,0.00030136,4]
[328231113,1717079447916,-500.0,0.00030136,4]
[328231115,1717079447925,-524.07826052,0.00030136,4]
[328231117,1717079447937,-320.53083412,0.00030136,4]
[328231119,1717079447946,-621.86073958,0.00030136,4]
[328231121,1717079447955,-500.0,0.00030136,4]
[328231123,1717079447964,-505.47728858,0.00030136,4]
[328231125,1717079447973,-500.0,0.00030136,4]
[328231127,1717079447982,-500.0,0.00030136,4]
[328231129,1717079447991,-500.0,0.00030136,4]
[328231131,1717079448000,-500.0,0.00030136,4]
[328231133,1717079448010,-500.0,0.00030136,4]
[328231135,1717079448020,-210.82979652,0.00030137,2]
[328231137,1717079448030,-177.8,0.00030141,7]
[328231139,1717079448039,-151.0,0.00030141,7]
[328231141,1717079448048,-3028.09150096,0.0003021,7]
[328231143,1717079448057,-573.413161,0.0003031,2]
[328231145,1717079448065,-500.0,0.0003041,4]
[328231147,1717079448074,-367.93042079,0.0003041,4]
[328231149,1717079448083,-500.0,0.0003041,4]
[328231151,1717079448092,-177.45605196,0.0003041,4]
[328231153,1717079448100,-288.0700906,0.0003041,4]
[328231155,1717079448110,-455.67786294,0.0003041,4]
[328231157,1717079448119,-500.0,0.0003041,2]
[328231159,1717079448128,-587.23,0.0003041,4]
[328231161,1717079448137,-500.0,0.0003041,4]
[328231163,1717079448146,-500.0,0.0003041,4]
[328231165,1717079448156,-500.0,0.0003041,4]
[328231167,1717079448164,-500.0,0.0003041,4]
[328231169,1717079448174,-500.0,0.0003041,4]
[328231171,1717079448183,-500.0,0.0003041,2]
[328231173,1717079448193,-500.0,0.0003041,4]
[328231175,1717079448202,-500.0,0.0003041,4]
[328231177,1717079448211,-500.0,0.0003041,4]
[328231179,1717079448221,-500.0,0.0003041,4]
[328231181,1717079448230,-500.0,0.0003041,4]
[328231183,1717079448239,-360.16456441,0.0003041,4]
[328231185,1717079448249,-568.63438412,0.0003041,4]
[328231187,1717079448259,-500.0,0.0003041,4]
[328231188,1717079448269,-500.0,0.0003041,4]
[328231190,1717079448278,-500.0,0.0003041,4]
[328231192,1717079448287,-1014.89,0.0003041,4]
[328231193,1717079448296,-1286.1,0.0003041,4]
[328231195,1717079448305,-395.03142726,0.0003041,4]
[328231197,1717079448315,-500.0,0.0003041,4]
[328231199,1717079448324,-463.45062669,0.0003041,4]
[328231201,1717079448334,-690.89,0.0003041,4]
[328231202,1717079448343,-500.0,0.0003041,4]
[328231204,1717079448352,-2164.75,0.0003041,4]
[328231206,1717079448361,-500.0,0.0003041,4]
[328231208,1717079448370,-500.0,0.0003041,4]
[328231209,1717079448380,-500.0,0.0003041,2]
[328231211,1717079448390,-500.0,0.0003041,4]
[328231213,1717079448400,-500.0,0.0003041,4]
[328231215,1717079448409,-157.64762155,0.0003041,4]
[328231216,1717079448419,-500.0,0.0003041,4]
[328231218,1717079448428,-521.16829984,0.0003041,4]
[328231220,1717079448438,-500.0,0.0003041,4]
[328231221,1717079448447,-614.21,0.0003041,4]
[328231223,1717079448456,-3208.03114329,0.00030651,5]
[328231225,1717079448465,-2677.98230073,0.00030682,4]
[328231227,1717079448475,-500.0,0.00030684,4]
[328231229,1717079448484,-500.0,0.00030684,2]
[328231230,1717079448493,-506.03197754,0.00030684,4]
[328231232,1717079448501,-500.0,0.00030684,4]
[328231234,1717079448510,-500.0,0.00030684,4]
[328231235,1717079448520,-500.0,0.00030684,2]
[328231237,1717079448530,-500.0,0.00030684,4]
[328231239,1717079448539,-555.84325379,0.00030684,4]
[328231241,1717079448547,-632.15151793,0.00030684,4]
[328231243,1717079448557,-185.498124,0.00030684,2]
[328231245,1717079448566,-500.0,0.00030684,4]
[328231246,1717079448575,-248.01804075,0.00030684,4]
[328231248,1717079448584,-500.0,0.00030684,4]
[328231250,1717079448593,-151.0,0.00030684,2]
[328231252,1717079448602,-248.04891,0.00030684,2]
[328231253,1717079448611,-1014.89,0.00030684,4]
[328231255,1717079448620,-1286.1,0.00030684,4]
[328231257,1717079448629,-500.0,0.00030684,4]
[328231259,1717079448640,-690.89,0.00030684,4]
[328231261,1717079448649,-2164.75,0.00030684,4]
[328231262,1717079448659,-500.0,0.00030684,4]
[328231264,1717079448668,-500.0,0.00030684,2]
[328231266,1717079448679,-500.0,0.00030684,4]
[328231267,1717079448688,-500.0,0.00030684,4]
[328231269,1717079448698,-300.1332476,0.00030684,4]
[328231271,1717079448707,-160.48,0.000308,3]
[328231273,1717079448716,-158.7496236,0.0003084,2]
[328231275,1717079448726,-155.1028394,0.0003084,2]
[328231277,1717079448735,-153.0,0.0003084,2]
[328231278,1717079448744,-153.0,0.0003084,2]
[328231280,1717079448753,-153.0,0.0003084,2]
[328231282,1717079448762,-500.0,0.00030958,4]
[328231284,1717079448771,-500.0,0.00030958,2]
[328231285,1717079448780,-463.28125,0.00030958,4]
[328231287,1717079448789,-500.0,0.00030958,4]
[328231289,1717079448798,-500.0,0.00030958,2]
[328231291,1717079448807,-500.0,0.00030958,4]
[328231293,1717079448816,-500.0,0.00030958,4]
[328231294,1717079448825,-500.0,0.00030958,4]
[328231296,1717079448834,-1014.89,0.00030958,4]
[328231298,1717079448843,-1286.1,0.00030958,4]
[328231300,1717079448855,-500.0,0.00030958,4]
[328231302,1717079448865,-690.89,0.00030958,4]
[328231304,1717079448875,-2164.75,0.00030958,4]
[328231306,1717079448884,-500.0,0.00030958,4]
[328231307,1717079448895,-500.0,0.00030958,2]
[328231309,1717079448904,-500.0,0.00030958,4]
[328231311,1717079448914,-500.0,0.00030958,4]
[328231313,1717079448923,-300.0,0.00031,4]
[328231315,1717079448935,-1974.71411455,0.00031,2]
[328231317,1717079448945,-8314.0,0.00031,5]
[328231319,1717079448954,-2321.0,0.00031,2]
[328231321,1717079448963,-3954.79,0.00031,14]
[328231323,1717079448974,-500.0,0.00031232,4]
[328231325,1717079448985,-500.0,0.00031232,2]
[328231327,1717079448999,-500.0,0.00031232,4]
[328231329,1717079449011,-500.0,0.00031232,2]
[328231331,1717079449024,-500.0,0.00031232,4]
[328231333,1717079449035,-500.0,0.00031232,4]
[328231335,1717079449046,-500.0,0.00031232,4]
[328231337,1717079449057,-1014.89,0.00031232,4]
[328231339,1717079449069,-1286.1,0.00031232,4]
[328231342,1717079449081,-500.0,0.00031232,4]
[328231343,1717079449092,-690.89,0.00031232,4]
[328231346,1717079449105,-2164.75,0.00031232,4]
[328231348,1717079449118,-500.0,0.00031232,4]
[328231350,1717079449130,-467.07466217,0.00031232,2]
[328231352,1717079449142,-500.0,0.00031232,4]
[328231354,1717079449153,-500.0,0.00031232,4]
[328231356,1717079449164,-161.32159789,0.00031267,7]
[328231358,1717079449175,-167.74758701,0.00031364,7]
[328231360,1717079449185,-177.8,0.00031372,7]
[328231362,1717079449196,-151.0,0.00031372,7]
[328231364,1717079449208,-167.74758701,0.00031413,7]
[328231366,1717079449220,-161.32159789,0.0003142,7]
[328231368,1717079449232,-161.32159789,0.00031462,7]
[328231370,1717079449243,-213.83149499,0.000315,2]
[328231372,1717079449257,-477.20950868,0.00031505,7]
[328231374,1717079449270,-500.0,0.00031506,4]
[328231377,1717079449281,-500.0,0.00031506,2]
[328231379,1717079449293,-300.0,0.00031506,4]
[328231381,1717079449305,-500.0,0.00031506,2]
[328231383,1717079449317,-500.0,0.00031506,4]
[328231385,1717079449328,-500.0,0.00031506,4]
[328231387,1717079449339,-500.0,0.00031506,4]
[328231389,1717079449350,-151.0,0.00031506,2]
[328231391,1717079449364,-1014.89,0.00031506,4]
[328231393,1717079449376,-1286.1,0.00031506,4]
[328231395,1717079449387,-500.0,0.00031506,4]
[328231397,1717079449399,-690.89,0.00031506,4]
[328231399,1717079449410,-2164.75,0.00031506,4]
[328231401,1717079449422,-500.0,0.00031506,4]
[328231403,1717079449434,-500.0,0.00031506,4]
[328231405,1717079449446,-500.0,0.00031506,4]
[328231407,1717079449458,-477.20950868,0.00031536,7]
[328231409,1717079449469,-477.20950868,0.00031539,7]
[328231411,1717079449480,-159.95068824,0.00031554,7]
[328231413,1717079449490,-477.20950868,0.00031575,7]
[328231415,1717079449503,-161.32159789,0.00031629,7]
[328231417,1717079449514,-477.20950868,0.00031645,7]
[328231419,1717079449526,-153.0,0.0003165,2]
[328231421,1717079449537,-167.74758701,0.00031689,7]
[328231423,1717079449548,-477.20950868,0.00031708,7]
[328231425,1717079449558,-500.0,0.0003178,4]
[328231427,1717079449569,-500.0,0.0003178,2]
[328231429,1717079449579,-500.0,0.0003178,2]
[328231431,1717079449592,-500.0,0.0003178,4]
[328231433,1717079449605,-500.0,0.0003178,4]
[328231435,1717079449617,-500.0,0.0003178,4]
[328231438,1717079449628,-1014.89,0.0003178,4]
[328231440,1717079449638,-1286.1,0.0003178,4]
[328231442,1717079449648,-500.0,0.0003178,4]
[328231444,1717079449659,-690.89,0.0003178,4]
[328231446,1717079449670,-2164.75,0.0003178,4]
[328231448,1717079449682,-500.0,0.0003178,4]
[328231450,1717079449693,-500.0,0.0003178,4]
[328231453,1717079449703,-245.49835907,0.0003178,4]
[328231455,1717079449714,-167.74758701,0.0003184,7]
[328231456,1717079449724,-161.32159789,0.00031843,7]
[328231457,1717079449735,-161.32159789,0.00031897,7]
[328231458,1717079449745,-477.20950868,0.00031935,7]
[328231459,1717079449756,-161.32159789,0.00031949,7]
[328231460,1717079449767,-161.32159789,0.00031951,7]
[328231461,1717079449778,-477.20950868,0.00031956,7]
[328231462,1717079449789,-161.32159789,0.00031975,7]
[328231463,1717079449799,-167.74758701,0.00031979,7]
[328231464,1717079449810,-449.06389234,0.00032,4]
[328231465,1717079449820,-300.0,0.00032,5]
[328231466,1717079449831,-2006.49,0.00032,6]
[328231467,1717079449842,-167.74758701,0.00032004,7]
[328231468,1717079449856,-161.32159789,0.00032032,7]
[328231469,1717079449866,-322.99169123,0.00032054,4]
[328231470,1717079449876,-500.0,0.00032054,2]
[328231471,1717079449887,-500.0,0.00032054,2]
[328231473,1717079449898,-500.0,0.00032054,4]
[328231474,1717079449908,-500.0,0.00032054,4]
[328231476,1717079449919,-500.0,0.00032054,4]
[328231478,1717079449932,-1014.89,0.00032054,4]
[328231480,1717079449941,-1286.1,0.00032054,4]
[328231482,1717079449951,-500.0,0.00032054,4]
[328231484,1717079449962,-690.89,0.00032054,4]
[328231486,1717079449973,-2164.75,0.00032054,4]
[328231488,1717079449984,-500.0,0.00032054,4]
[328231491,1717079449994,-500.0,0.00032054,4]
[328231493,1717079450004,-167.74758701,0.00032088,7]
[328231495,1717079450015,-167.74758701,0.00032126,7]
[328231497,1717079450027,-5664.20722694,0.00032148,5]
[328231499,1717079450038,-161.32159789,0.0003218,7]
[328231502,1717079450049,-153.0,0.00032198,2]
[328231504,1717079450060,-1000.0,0.000322,120]
[328231506,1717079450070,-477.20950868,0.0003221,7]
[328231508,1717079450080,-477.20950868,0.00032229,7]
[328231510,1717079450091,-167.74758701,0.00032283,7]
[328231512,1717079450102,-161.32159789,0.00032284,7]
[328231514,1717079450113,-161.32159789,0.00032295,7]
[328231517,1717079450124,-167.74758701,0.00032309,7]
[328231519,1717079450136,-167.74758701,0.00032312,7]
[328231521,1717079450147,-161.32159789,0.00032321,7]
[328231523,1717079450158,-500.0,0.00032328,2]
[328231525,1717079450168,-500.0,0.00032328,2]
[328231527,1717079450178,-500.0,0.00032328,4]
[328231530,1717079450189,-500.0,0.00032328,4]
[328231532,1717079450200,-566.78655675,0.00032328,4]
[328231534,1717079450211,-1014.89,0.00032328,4]
[328231536,1717079450221,-1286.1,0.00032328,4]
[328231538,1717079450232,-457.8635179,0.00032328,4]
[328231541,1717079450244,-690.89,0.00032328,4]
[328231543,1717079450256,-2164.75,0.00032328,4]
[328231545,1717079450267,-500.0,0.00032328,4]
[328231560,1717079450404,-427.76937929,0.00032328,4]
[328231563,1717079450419,-477.20950868,0.00032388,7]
[328231565,1717079450429,-161.32159789,0.00032409,7]
[328231567,1717079450438,-477.20950868,0.00032569,7]
[328231569,1717079450448,-31968.96934172,0.000326,2]
[328231571,1717079450457,-282.0,0.000326,5]
[328231573,1717079450467,-151.0,0.000326,2]
[328231575,1717079450476,-500.0,0.00032602,2]
[328231577,1717079450485,-450.0,0.00032602,2]
[328231579,1717079450495,-500.0,0.00032602,4]
[328231580,1717079450503,-500.0,0.00032602,4]
[328231583,1717079450513,-1014.89,0.00032602,4]
[328231585,1717079450525,-1286.1,0.00032602,4]
[328231587,1717079450535,-690.89,0.00032602,4]
[328231589,1717079450544,-2164.75,0.00032602,4]
[328231591,1717079450553,-500.0,0.00032602,4]
[328231593,1717079450563,-177.8,0.00032602,7]
[328231594,1717079450573,-151.0,0.00032602,7]
[328231596,1717079450582,-477.20950868,0.00032649,7]
[328231598,1717079450591,-161.32159789,0.00032652,7]
[328231601,1717079450601,-477.20950868,0.00032715,7]
[328231603,1717079450611,-159.95068824,0.00032721,7]
[328231604,1717079450620,-477.20950868,0.00032774,7]
[328231606,1717079450630,-167.74758701,0.00032779,7]
[328231608,1717079450639,-418.2732194,0.00032795,2]
[328231611,1717079450649,-400.0,0.000328,3]
[328231612,1717079450658,-160.48,0.000328,3]
[328231614,1717079450667,-477.20950868,0.0003286,7]
[328231616,1717079450677,-477.20950868,0.00032862,7]
[328231619,1717079450687,-477.20950868,0.00032872,7]
[328231620,1717079450696,-500.0,0.00032876,2]
[328231623,1717079450706,-500.0,0.00032876,4]